Cogmind - Beta 16.1 @@@ ROGUE MODE // 2026.02.21 @ 14:27:36 Player: Starcat Lazuli Result: Destroyed by 4W-WFQ(R) with Subdweller Machine Gun Performance ------------- Evolutions (0) 0 Regions Visited (2) 400 Robots Destroyed (19) 95 Value Destroyed (394) 394 Prototype IDs (0) 0 Alien Tech Used (0) 0 Bonus (0) 0 TOTAL SCORE: 889 Bonus ------- None Cogmind --------- Core Integrity 0/250 Matter 65/300 Energy 131/250 System Corruption 0% Temperature Cool (0) Movement Walking (120) Location -10/Subcaves Parts ------- > --- POWER (1) -------- Ion Engine > --- PROPULSION (2) --- Aluminum Leg Aluminum Leg > --- UTILITY (2) ------ Medium Storage Unit Seismic Detector > --- WEAPON (2) ------- Grenade Launcher > --- INVENTORY (10) --- Ion Engine Aluminum Leg Subdweller Optics Improved Terrain Scanner Light Armor Plating Assault Rifle Battle Cannon Battle Cannon Peak State ------------ > --- POWER ------------ Subdweller Power Source > --- PROPULSION ------- Aluminum Leg Aluminum Leg > --- UTILITY ---------- Medium Storage Unit Seismic Detector > --- WEAPON ----------- Assault Rifle Battle Cannon > --- INVENTORY -------- Ion Engine Ion Engine Aluminum Leg Aluminum Leg Subdweller Optics Improved Terrain Scanner Light Armor Plating Assault Rifle Grenade Launcher [Rating: 10] Favorites ----------- Power Ion Engine Engine Ion Engine Propulsion Aluminum Leg Leg Aluminum Leg Utility Seismic Detector Device Seismic Detector Storage Medium Storage Unit Weapon Assault Rifle Ballistic Gun Assault Rifle Ballistic Cannon Battle Cannon Launcher Grenade Launcher Build | -11 -10 -10 ------- Run | Yrd Mat Sub Slots Evolved . | . . . Power . | . . . Propulsion . | . . . Utility . | . . . Weapon . | . . . Parts Attached 22 | 7 9 6 Power 6 | 1 3 2 Engine 6 | 1 3 2 Core . | . . . Reactor . | . . . Propulsion 4 | 2 . 2 Treads . | . . . Leg 4 | 2 . 2 Wheel . | . . . Hover . | . . . Flight . | . . . Utility 4 | 2 2 . Device 2 | 1 1 . Storage 2 | 1 1 . Processor . | . . . Hackware . | . . . Protection . | . . . Artifact . | . . . Weapon 8 | 2 4 2 Energy Gun . | . . . Energy Cannon . | . . . Ballistic Gun 6 | 2 3 1 Ballistic Cannon 1 | . . 1 Launcher 1 | . 1 . Special Weapon . | . . . Impact Weapon . | . . . Slashing Weapon . | . . . Piercing Weapon . | . . . Special Melee Weapon . | . . . Unidentified Prototypes . | . . . Parts Lost 6 | . 1 5 Power 1 | . . 1 Propulsion 2 | . . 2 Utility . | . . . Weapon 3 | . 1 2 Highest Loss Streak 2 | . 1 2 To Critical Strikes . | . . . Average Backups 7 | 3 7 8 Power 1 | . 1 1 Propulsion 2 | 1 1 2 Utility 1 | . 1 2 Weapon 2 | . 2 1 Tool/Special . | . . . Unused Backups 7 | . 3 4 Power 2 | . 1 1 Propulsion 3 | . 2 1 Utility 2 | . . 2 Weapon . | . . . Tool/Special . | . . . Average Slot Usage (%) 99 | . 100 99 Engine 14 | . 14 14 Leg 27 | . 28 27 Device 14 | . 14 14 Storage 14 | . 14 14 Ballistic Gun 24 | . 27 20 Launcher 2 | . . 6 Peak Build Rating 10 | 9 9 10 Average Rating 7 | 5 7 8 On Entrance 5 | . 9 8 Avg Prop Armor Cover (%) . | . . . Naked Turns . | . . . Heaviest Build 21 | 11 20 21 Greatest Support 20 | 20 20 20 Greatest Overweight (x) 1 | 1 . 1 Average Overweight (x) . | . . . Largest Inventory Capacity 10 | 8 10 10 Average Capacity 9 | 7 8 10 Most Carried 10 | 4 10 10 Average Carried 7 | 3 7 8 Final Capacity 10 | 8 10 10 Final Carried 9 | 4 9 8 Class Distribution -------------------- 100% | Mutant Dominant Class ---------------- Mutant | -10/Materials Mutant | -10/Subcaves Resources | -11 -10 -10 ----------- Run | Yrd Mat Sub Matter Collected 665 | 221 323 121 Remotely . | . . . Salvage Created 447 | 22 358 67 Parts 34 | 2 25 7 Haulers Intercepted 1 | . 1 . Recyclers Shooed . | . . . Parts Field Recycled . | . . . Retrieved Matter . | . . . Parts Self-Destructed . | . . . Prevented . | . . . Parts Restored . | . . . Kills | -11 -10 -10 ------- Run | Yrd Mat Sub Combat Hostiles Destroyed 17 | . 13 4 Guns 12 | . 11 1 Cannons 1 | . . 1 AOE 4 | . 2 2 Classes Destroyed 6 | 1 3 2 Tunneler 1 | 1 . . Hauler 1 | . 1 . Swarmer 9 | . 8 1 Grunt 5 | . 5 . Sentry 1 | . . 1 Subdweller 2 | . . 2 Best Kill Streak 3 | 1 3 2 Combat Bots Only 3 | . 3 2 Max Kills in Single Turn 2 | 1 2 1 Gunslinging 1 | . 1 . Exploded 2 | . 2 1 Melee . | . . . Uniques/NPCs Destroyed . | . . . Combat | -11 -10 -10 -------- Run | Yrd Mat Sub Hostile Shots Fired 118 | . 73 45 Missed 33 | . 18 15 Hits 85 | . 55 30 Projectile 85 | . 55 30 Critical Strikes 2 | . 1 1 Damage Taken 1045 | . 470 575 Core 257 | . 98 159 Absorbed by Shields . | . . . Core Remaining (%) 100 | 100 . . Volleys Fired 68 | 6 34 28 Largest 2 | 2 2 2 Hottest 53 | 40 40 53 Shots Fired 117 | 12 67 38 Gun 92 | 12 66 14 Cannon 6 | . . 6 Launcher 19 | . 1 18 Special . | . . . Kinetic 98 | 12 66 20 Thermal . | . . . Explosive 19 | . 1 18 Electromagnetic . | . . . Robot Hit Streak 7 | 3 7 7 Robot Miss Streak 4 | 2 4 2 Penetration Max . | . . . Secondary Targets 1 | . 1 . Max Gunslinging Chain 1 | . 1 . Shots Hit Robots 67 | 7 39 21 Core Hits 32 | 2 20 10 Critical Kills . | . . . Critical Parts Destroyed . | . . . Critical Strikes . | . . . Melee Attacks . | . . . Impact . | . . . Slashing . | . . . Piercing . | . . . Sneak Attacks . | . . . Combat Hostiles . | . . . Follow-up Attacks . | . . . Damage Inflicted 1274 | 59 625 590 Guns 673 | 59 480 134 Cannons 110 | . . 110 Explosions 491 | . 145 346 Melee . | . . . Ramming . | . . . Kinetic 783 | 59 480 244 Thermal . | . . . Explosive 491 | . 145 346 Electromagnetic . | . . . Impact . | . . . Slashing . | . . . Piercing . | . . . Highest Corruption . | . . . Average Corruption . | . . . Corruption Purged . | . . . Corruption Blocked . | . . . Overload Shots . | . . . Overflow Damage 7 | . . 7 Projectiles . | . . . Explosions 7 | . . 7 Melee . | . . . Knockbacks 3 | . . 3 Impact . | . . . Kinetic 3 | . . 3 Secondary . | . . . Self-Inflicted Damage 83 | . . 83 Shots 4 | . . 4 Rammed . | . . . Targets Rammed . | . . . Kicked . | . . . Crushed . | . . . Highest Temperature 2 | . . 2 Average Temperature 2 | . . 2 Received Heat Transfer 183 | . 66 117 Siege Activations . | . . . Martial Activations . | . . . Shielding Activations . | . . . Robots Disrupted . | . . . Combat Hostiles . | . . . Robots Corrupted . | . . . Combat Hostiles . | . . . Parts Fried . | . . . Impact Corruptions . | . . . Robots Melted . | . . . Combat Hostiles . | . . . Parts Melted . | . . . Heat Transferred . | . . . Parts Sabotaged . | . . . Parts Stolen . | . . . Parts Stripped . | . . . Power Chain Reactions . | . . . Alert | -11 -10 -10 ------- Run | Yrd Mat Sub Maximum Alert Level . | . . . Low Security (%) 100 | 100 100 . Level 1 . | . . . Level 2 . | . . . Level 3 . | . . . Level 4 . | . . . Level 5 . | . . . High Security . | . . . Max Security . | . . . Peak Influence 169 | 5 169 . Initial 3 | . 3 . Average 63 | . 70 . Influence Increases 409 | 5 349 55 Destroy 0b10 Robot/C 300 | . 260 40 Destroy 0b10 Robot/NC 10 | 5 5 . Destroy Leader 42 | . 42 . Destroy Structure 12 | . 12 . Lose Combat Pursuer 45 | . 30 15 Influence Decreases 409 | . 228 181 Entered New Map 64 | . 2 62 Time Decay 315 | . 216 99 Lost Part 30 | . 10 20 Squads Dispatched 3 | . 3 . Investigation . | . . . Extermination . | . . . Reinforcement 3 | . 3 . Assault . | . . . Garrison . | . . . Intercept . | . . . Searches Triggered . | . . . Construction Impeded . | . . . Haulers Reinforced . | . . . Active Scanning Responses . | . . . Cargo Convoy Interrupts . | . . . Stealth | -11 -10 -10 --------- Run | Yrd Mat Sub Distress Signals 1 | . 1 . Communications Jammed . | . . . Distress Signals . | . . . Times Spotted 27 | . 21 6 Peak Tracking Total 4 | . 4 2 Tactical Retreats 3 | . 2 1 Traps | -11 -10 -10 ------- Run | Yrd Mat Sub Traps Triggered . | . . . Indirectly . | . . . Trap Hack Attempts . | . . . Triggered . | . . . Disarmed . | . . . Reprogrammed . | . . . Reused . | . . . Traps Extracted . | . . . Installed . | . . . Triggered . | . . . Machines | -11 -10 -10 ---------- Run | Yrd Mat Sub Machines Disabled . | . . . Max in Single Turn . | . . . Machines Repaired . | . . . Machines Dismantled . | . . . Machines Sabotaged . | . . . Overloaded Fab Kills . | . . . Hacking | -11 -10 -10 --------- Run | Yrd Mat Sub Machines Accessed 2 | . 2 . Terminals 1 | . 1 . Fabricators . | . . . Repair Stations . | . . . Recycling Units 1 | . 1 . Scanalyzers . | . . . Garrison Access . | . . . Total Hacks 2 | . 2 . Successful 1 | . 1 . Failed 1 | . 1 . Catastrophic 1 | . 1 . Database Lockouts . | . . . Manual 1 | . 1 . Terminals 1 | . 1 . Fabricators . | . . . Repair Stations . | . . . Recycling Units 1 | . 1 . Scanalyzers . | . . . Garrison Access . | . . . Terminal Hacks . | . . . Fabricator Hacks . | . . . Repair Station Hacks . | . . . Recycling Unit Hacks 1 | . 1 . Retrieve Matter 1 | . 1 . Scanalyzer . | . . . Garrison Access Hacks . | . . . Unauthorized Hacks . | . . . Terminals . | . . . Fabricators . | . . . Repair Stations . | . . . Recycling Units . | . . . Scanalyzers . | . . . Garrison Access . | . . . Data Cores Recovered . | . . . Used . | . . . Hacking Detections 1 | . 1 . Full Trace Events . | . . . Feedback Events . | . . . Feedback Blocked . | . . . Robot Schematics Acquired . | . . . Robots Built . | . . . Authchips . | . . . Time . | . . . Total Robot Build Rating . | . . . Part Schematics Acquired . | . . . Parts Built . | . . . Authchips . | . . . Time . | . . . Total Part Build Rating . | . . . Part Studies Acquired . | . . . Parts Repaired . | . . . Time . | . . . Parts Recycled . | . . . Recycled Matter . | . . . Retrieved Matter . | . . . Retrieved Components . | . . . Parts Scanalyzed . | . . . Part Schematics Acquired . | . . . Parts Damaged . | . . . Bothacking | -11 -10 -10 ------------ Run | Yrd Mat Sub Used RIF Installer . | . . . Robots Hacked . | . . . Non-combat . | . . . Combat . | . . . Robot Hacks Applied . | . . . Relay Couplers Released . | . . . Fabnet Peak Effective % . | . . . Robots Rewired . | . . . Allies Hacked . | . . . Hacks Repelled . | . . . Allies | -11 -10 -10 -------- Run | Yrd Mat Sub Total Allies . | . . . Largest Group . | . . . Highest-Rated Group . | . . . Highest-Rated Ally . | . . . Total Orders . | . . . Ally Attacks . | . . . Total Damage . | . . . Kills . | . . . Allies Corrupted . | . . . Allies Melted . | . . . Intel | -11 -10 -10 ------- Run | Yrd Mat Sub Active Infowar (turns) 1309 | 10 726 573 Terrain 146 | 10 136 . Seismic 1163 | . 590 573 Robot Analysis Total . | . . . Derelict Logs Recovered . | . . . Drone Launches . | . . . Drone Recoveries . | . . . Exploration | -11 -10 -10 ------------- Run | Yrd Mat Sub Turns Passed 1378 | 79 726 573 Spaces Moved 803 | 43 435 325 Core 9 | 9 . . Treads . | . . . Legs 794 | 34 435 325 Wheels . | . . . Hover . | . . . Flight . | . . . Fastest Speed 50 | 50 120 120 Average Speed 130 | 107 120 147 Slowest Speed 190 | 120 120 190 Overloaded Moves . | . . . Propulsion Burnouts . | . . . Robots Hopped . | . . . Potential Cave-ins . | . . . Cave-ins Triggered . | . . . Exploration Rate (%) 30 | 3 59 28 Regions Visited 2 Branch Regions 1 Pre-discovered Areas . | . . . Known Exits Taken . | . . . Unknown Exits Taken 2 | 1 1 . Scrap Searched . | . . . Spaces Dug 6 | . . 6 Terrain Destroyed 89 | . 9 80 Melee . | . . . Projectile 1 | . . 1 AOE 88 | . 9 79 Terrain Rammed . | . . . Walls Destroyed . | . . . Machines Disabled . | . . . Actions | -11 -10 -10 --------- Run | Yrd Mat Sub Total 1017 | 62 575 380 Wait 92 | 3 77 12 Move 801 | 42 434 325 Hop . | . . . Pick Up 16 | 4 9 3 Fast Attach 10 | 7 2 1 Attach 5 | . 1 4 Detach 3 | . 2 1 Swap 12 | . 7 5 Drop 10 | . 9 1 Fire 68 | 6 34 28 Melee . | . . . Ram . | . . . Kick . | . . . Crush . | . . . Escape Stasis . | . . . Rewire . | . . . Trap . | . . . Miscellaneous . | . . . Route ------- -11/Scrapyard -10/Materials (discovered 5 exits: [*Mat x2] / [*Min x2] / [*Sub]) -10/Subcaves History --------- Turn | Location | Event 7 | -11/Scrapyard | Discovered new exit (range 16) 80 | -11/Scrapyard | Entered Materials 131 | -10/Materials | Discovered new exit (range 15) 247 | -10/Materials | Discovered new exit (range 8) 313 | -10/Materials | Build established: Mutant 438 | -10/Materials | Discovered new exit (range 11) 502 | -10/Materials | Discovered new exit (range 13) 761 | -10/Materials | Discovered new exit (range 14) 806 | -10/Materials | Entered Subcaves 891 | -10/Subcaves | Core integrity fell below 50% 1091 | -10/Subcaves | Shifting Twisted Machinery released Battle Cannon 1093 | -10/Subcaves | Shifting Twisted Machinery released Sub. Monowheel 1376 | -10/Subcaves | Core integrity fell below 20% 1379 | -10/Subcaves | Destroyed by 4W-WFQ(R) with Subdweller Machine Gun Last Messages --------------- 01330_ The unstable cave ceiling collapses. 01334_ 10-TB9(R) knocked back. 01337_ The unstable cave ceiling collapses. 01339_ Aluminum Leg destroyed. 01340_ 10-TB9(R) knocked back. 01343_ The unstable cave ceiling collapses. 01343_ 10-TB9(R) destroyed. 01344_ The unstable cave ceiling collapses. 01351_ Acquired Battle Cannon. 01352_ Acquired 3 matter. 01356_ Acquired 5 matter. 01358_ Acquired 2 matter. 01366_ Sub. Power Source shoots sparks and powers down. 01368_ 4W-WFQ(R): "ARGHSUB!" 01368_ Dropped Broken Sub. Power Source. 01369_ Subatomizers dissect the Broken Sub. Power Source. 01370_ Assault Rifle destroyed. 01372_ Acquired 10 matter. Map ----- +----------------------------------------------------+ | ?????????????????????????????????????????????????? | | ??????????????????????????????? ????????????????? | | ?????????????????????????????? ???????????????? | | ?????????????????????????????? ???##?????????? | | ????????????????????????????? #?## ?????????? | | ????????????????????????????? ## ?????????? | | ?????????????????????????????? ?????????? | | ??????????????????????????????? ##?????### | | ?????????????????????????????????# ###???# # | | ?????????????????????????????????# #???# | | ??????????????????????? ?????# ##?## | | ????????????????????? #???????# #?# | | ?????????????????????? ##??????## ##?# | | ?????????????????????? ##?????## #??#" | | ?????????????????????? #?????# #??##" | | ?????????????????????? #?????# ##???##" | | ??????????????????????# R #?????# #????# " | | ??????????????????????# ??????## #????## | | ??????????????????????# ???????# ##?????# | | ??????????????????????? ???????# ##????## | | ??????????????????????? ????????# =###??# | | ???????????????????????# #?????#### " ##### | | ???????????????????????# #???### # # "" ## | | ?????????## ??????????## ##### "" "## | | ????????## ??######## ## "" # | | ???????? ## @ #### ### "" | | ???????? ;;; # # #?# ####?# " | | ??????? #" # ## O #?# #???# ### " | | ??????? " * #### #???# ##?#### """ | | ???????# # ##???###?????# " | | ???????#" #????????????# | | ??????????# # #???????????## | | ??????????## ### # #??????????# | | ???????????#" # # #########??????????# | | ???????????#"# " ####????????????????### # | | ????????????# " ######????????????????????# ## | | ??????????? ""???????????????????????????# #? | | ??????????# #???????????????????????????## ## | | ?????????????????????????????????????????# # | | ?????????????????????????????????????????# ### | | ?????????????????????????????????????????# ??# | | ????????????????????????????????????????# ?## | | ????????????????????????????????????????# #?# | | ????????????????????????????????????????# ??# | | ????????????????????????????????????????###??## | | ??????????????????????????????????????????????## | | ???????????????????????????????????????????????# | | ????????????????????????????????????????????#### | | ????????????????????????????????????????????# | | ???????????????????????????????????????? ## | +----------------------------------------------------+ Best States ------------- Heat Dissipation 25 Energy Generation 15 Energy Capacity 250 Matter Stores 288 Matter Capacity 300 Sight Range 16 Terrain Scan Range 16 Terrain Scan Density 10 Evasion (%) 55 Item Schematics ----------------- None Robot Schematics ------------------ None Fabricated ------------ Nothing Repaired ---------- Nothing Studied --------- None Alien Tech Used ----------------- None Achievements -------------- Resistances Are Futile Challenges ------------ None Game ------ Seed AssemblyCannonRedirector Manual? 0 Play Time 00:19:18 Cumulative 68.1 hours Start 2026.02.21 @ 14:08:46 End 2026.02.21 @ 14:27:36 Sessions 1 Manual Loads 0 Difficulty Rogue Special Mode None Game No. 27 Rogue 26 Adventurer 1 Explorer 0 Win Type - Total 0 Types 0/0/0/0/0/0/0/0/0/0 Lore% 11 Gallery% 31 Achievement% 18 Wizard Run 0 Options --------- Layout 2 ASCII 0 Keyboard 1 Movement Numpad Keybinds 0 Fullscreen 1 Font 24/Terminus Map View 50x44 Zoom Use 0% Tactical HUD 1 Map Filters NONE Filters LOW_CONTRAST(13,24,33) Steam 1 RUN: c6a06d3f-99ab-4379-a718-d8039ef61808